fUST/lending_fUST_20241229
["ID","MTS","AMOUNT","RATE_DAILY","PERIOD"]
[347052653,1735485047575,-500.0,9.741e-05,2]
[347052655,1735485047585,-585.02,9.741e-05,2]
[347052657,1735485047594,-502.20307158,9.741e-05,2]
[347052658,1735485047604,-500.0,9.741e-05,2]
[347052660,1735485047613,-500.0,9.741e-05,2]
[347052662,1735485047622,-500.0,9.741e-05,2]
[347052663,1735485047631,-500.0,9.741e-05,2]
[347052664,1735485047641,-500.0,9.741e-05,2]
[347052665,1735485047651,-504.13478733,9.741e-05,2]
[347052666,1735485047661,-500.0,9.741e-05,2]
[347052667,1735485047670,-500.0,9.741e-05,2]
[347052668,1735485047680,-500.0,9.741e-05,2]
[347052669,1735485047689,-500.0,9.741e-05,2]
[347052670,1735485047701,-500.0,9.741e-05,2]
[347052671,1735485047711,-501.3771417,9.741e-05,2]
[347052673,1735485047720,-500.0,9.741e-05,2]
[347052675,1735485047730,-892.36,9.741e-05,2]
[347052677,1735485047740,-504.99808106,9.741e-05,2]
[347052679,1735485047749,-500.0,9.741e-05,2]
[347052681,1735485047759,-500.0,9.741e-05,2]
[347052683,1735485047770,-500.0,9.741e-05,2]
[347052685,1735485047779,-1510.05,9.741e-05,2]
[347052687,1735485047791,-500.0,9.741e-05,2]
[347052689,1735485047803,-500.0,9.741e-05,2]
[347052691,1735485047812,-500.0,9.741e-05,2]
[347052693,1735485047821,-500.0,9.741e-05,2]
[347052695,1735485047831,-500.0,9.741e-05,2]
[347052697,1735485047841,-502.08,9.741e-05,2]
[347052699,1735485047851,-545.95,9.741e-05,2]
[347052701,1735485047860,-500.0,9.741e-05,2]
[347052703,1735485047870,-694.38,9.741e-05,2]
[347052705,1735485047879,-500.0,9.741e-05,2]
[347052707,1735485047889,-500.0,9.741e-05,2]
[347052709,1735485047898,-500.0,9.741e-05,2]
[347052711,1735485047907,-500.0,9.741e-05,2]
[347052713,1735485047917,-924.15,9.741e-05,2]
[347052715,1735485047926,-504.81629914,9.741e-05,2]
[347052717,1735485047936,-500.0,9.741e-05,2]
[347052719,1735485047946,-500.0,9.741e-05,2]
[347052721,1735485047955,-1115.65,9.741e-05,2]
[347052723,1735485047965,-500.0,9.741e-05,2]
[347052725,1735485047974,-500.0,9.741e-05,2]
[347052727,1735485047983,-505.82640576,9.741e-05,2]
[347052729,1735485047992,-500.0,9.741e-05,2]
[347052731,1735485048002,-500.0,9.741e-05,2]
[347052733,1735485048011,-1196.59,9.741e-05,2]
[347052735,1735485048020,-500.0,9.741e-05,2]
[347052737,1735485048029,-939.67,9.741e-05,2]
[347052739,1735485048039,-500.0,9.741e-05,2]
[347052741,1735485048048,-500.0,9.741e-05,2]
[347052743,1735485048057,-278.95983926,9.741e-05,2]
[347052745,1735485048067,-625.76449472,9.741e-05,2]
[347052747,1735485048076,-500.0,9.741e-05,2]
[347052748,1735485048087,-500.0,9.741e-05,2]
[347052749,1735485048096,-500.0,9.742e-05,2]
[347052751,1735485048106,-500.0,9.742e-05,2]
[347052752,1735485048115,-500.0,9.742e-05,2]
[347052754,1735485048124,-505.78127576,9.742e-05,2]
[347052755,1735485048134,-500.0,9.742e-05,2]
[347052756,1735485048143,-500.0,9.742e-05,2]
[347052757,1735485048152,-500.0,9.742e-05,2]
[347052758,1735485048162,-500.0,9.742e-05,2]
[347052759,1735485048172,-174.68749629,9.742e-05,2]
[347052760,1735485048181,-500.0,9.742e-05,2]
[347052761,1735485048191,-500.0,9.742e-05,2]
[347052762,1735485048202,-500.0,9.742e-05,2]
[347052763,1735485048212,-229.92639621,9.742e-05,2]
[347052764,1735485048222,-500.0,9.742e-05,2]
[347052765,1735485048231,-500.0,9.742e-05,2]
[347052766,1735485048294,-500.0,9.742e-05,2]
[347052767,1735485048305,-500.0,9.742e-05,2]
[347052768,1735485048314,-500.0,9.742e-05,2]
[347052769,1735485048324,-535.32040178,9.742e-05,2]
[347052770,1735485048333,-841.62,9.742e-05,2]
[347052771,1735485048343,-500.0,9.742e-05,2]
[347052772,1735485048352,-245.96079676,9.742e-05,2]
[347052773,1735485048362,-618.98,9.742e-05,2]
[347052774,1735485048371,-518.11,9.742e-05,2]
[347052775,1735485048381,-565.69,9.742e-05,2]
[347052776,1735485048390,-522.9,9.742e-05,2]
[347052777,1735485048400,-500.0,9.742e-05,2]
[347052778,1735485048409,-500.0,9.742e-05,2]
[347052779,1735485048418,-500.0,9.742e-05,2]
[347052780,1735485048427,-500.0,9.742e-05,2]
[347052781,1735485048437,-3018.37,9.742e-05,2]
[347052782,1735485048447,-2892.61,9.742e-05,2]
[347052783,1735485048456,-500.0,9.742e-05,2]
[347052784,1735485048466,-500.0,9.742e-05,2]
[347052785,1735485048475,-584.87,9.742e-05,2]
[347052786,1735485048485,-500.0,9.742e-05,2]
[347052787,1735485048494,-953.05,9.742e-05,2]
[347052788,1735485048503,-500.0,9.742e-05,2]
[347052789,1735485048513,-500.0,9.742e-05,2]
[347052790,1735485048522,-500.0,9.742e-05,2]
[347052791,1735485048532,-967.91,9.742e-05,2]
[347052792,1735485048541,-500.0,9.742e-05,2]
[347052793,1735485048550,-500.0,9.742e-05,2]
[347052794,1735485048560,-848.38,9.743e-05,2]
[347052795,1735485048570,-1073.58,9.743e-05,2]
[347052796,1735485048579,-500.0,9.743e-05,2]
[347052797,1735485048588,-705.45,9.743e-05,2]
[347052798,1735485048598,-643.54,9.743e-05,2]
[347052799,1735485048608,-500.0,9.743e-05,2]
[347052800,1735485048618,-500.0,9.743e-05,2]
[347052801,1735485048627,-22014.43,9.743e-05,2]
[347052802,1735485048637,-708.85,9.743e-05,2]
[347052803,1735485048646,-500.0,9.743e-05,2]
[347052804,1735485048656,-511.17695848,9.744e-05,2]
[347052805,1735485048666,-500.0,9.744e-05,2]
[347052806,1735485048675,-500.0,9.744e-05,2]
[347052807,1735485048685,-441.37370691,9.744e-05,2]
[347052814,1735485049037,-58.62629309,9.744e-05,2]
[347052816,1735485049052,-500.0,9.744e-05,2]
[347052817,1735485049063,-500.0,9.744e-05,2]
[347052819,1735485049073,-412.84504956,9.744e-05,2]
[347052821,1735485049082,-535.03,9.744e-05,2]
[347052823,1735485049092,-500.0,9.744e-05,2]
[347052825,1735485049102,-500.0,9.744e-05,2]
[347052826,1735485049112,-188.0,9.744e-05,2]
[347052827,1735485049122,-500.0,9.744e-05,2]
[347052828,1735485049131,-500.0,9.744e-05,2]
[347052829,1735485049140,-500.0,9.744e-05,2]
[347052830,1735485049150,-500.0,9.744e-05,2]
[347052831,1735485049159,-500.0,9.744e-05,2]
[347052832,1735485049169,-500.0,9.744e-05,2]
[347052833,1735485049320,-500.0,9.744e-05,2]
[347052834,1735485049330,-444.93987405,9.744e-05,2]
[347052835,1735485049351,-522.4,9.467e-05,2]
[347052836,1735485049361,-55.06012595,9.744e-05,2]
[347052837,1735485049370,-500.0,9.744e-05,2]
[347052838,1735485049379,-500.0,9.744e-05,2]
[347052839,1735485049388,-500.0,9.744e-05,2]
[347052840,1735485049397,-591.39217371,9.744e-05,2]
[347052841,1735485049406,-670.05,9.744e-05,2]
[347052842,1735485049415,-500.0,9.747e-05,2]
[347052843,1735485049425,-500.0,9.747e-05,2]
[347052844,1735485049434,-500.0,9.747e-05,2]
[347052845,1735485049444,-500.0,9.747e-05,2]
[347052846,1735485049453,-509.37444203,9.747e-05,2]
[347052847,1735485049462,-500.0,9.747e-05,2]
[347052848,1735485049471,-396.82733284,9.747e-05,2]
[347052849,1735485049480,-500.0,9.776e-05,2]
[347052850,1735485049489,-504.70337052,9.776e-05,2]
[347052851,1735485049498,-500.0,9.776e-05,2]
[347052852,1735485049507,-569.23610051,9.776e-05,2]
[347052853,1735485049517,-472.28944458,9.776e-05,2]
[347052854,1735485049526,-503.93510783,9.776e-05,2]
[347052855,1735485049535,-505.69094441,9.776e-05,2]
[347052856,1735485049544,-500.0,9.777e-05,2]
[347052857,1735485049553,-983.55,9.777e-05,2]
[347052858,1735485049562,-500.0,9.777e-05,2]
[347052859,1735485049571,-500.0,9.777e-05,2]
[347052860,1735485049580,-500.0,9.777e-05,2]
[347052861,1735485049589,-500.0,9.777e-05,2]
[347052862,1735485049598,-500.0,9.777e-05,2]
[347052863,1735485049608,-345.62240134,9.778e-05,2]
[347052864,1735485049617,-500.0,9.778e-05,2]
[347052865,1735485049627,-1664.69,9.778e-05,2]
[347052866,1735485049636,-1664.69,9.778e-05,2]
[347052867,1735485049645,-4851.03,9.779e-05,2]
[347052868,1735485049654,-783.32,9.779e-05,2]
[347052869,1735485049663,-500.0,9.779e-05,2]
[347052870,1735485049673,-5496.72,9.784e-05,2]
[347052871,1735485049682,-1664.69,9.787e-05,2]
[347052872,1735485049692,-994.92527524,9.802e-05,2]
[347052873,1735485049702,-500.0,9.811e-05,2]
[347052874,1735485049711,-500.0,9.811e-05,2]
[347052875,1735485049720,-500.0,9.811e-05,2]
[347052876,1735485049729,-500.0,9.811e-05,2]
[347052877,1735485049739,-500.0,9.991e-05,2]
[347052878,1735485049749,-1000.0,9.991e-05,2]
[347052879,1735485049759,-605.91,0.00010013,2]
[347052881,1735485049767,-500.0,0.00010013,2]
[347052883,1735485049777,-2121.42,0.00010013,2]
[347052884,1735485049786,-1059.67,0.00010014,2]
[347052886,1735485049798,-500.0,0.00010014,2]
[347052888,1735485049808,-500.0,0.00010014,2]
[347052890,1735485049817,-500.0,0.00010014,2]
[347052892,1735485049826,-2563.51,0.00010014,2]
[347052894,1735485049835,-500.0,0.00010014,2]
[347052896,1735485049844,-500.0,0.00010014,2]
[347052898,1735485049854,-1657.25,0.00010014,2]
[347052900,1735485049864,-500.0,0.00010015,2]
[347052902,1735485049874,-636.82453616,0.00010015,2]
[347052904,1735485049883,-500.0,0.00010015,2]
[347052906,1735485049892,-500.0,0.00010015,2]
[347052908,1735485049901,-716.16,0.00010015,2]
[347052910,1735485049910,-500.0,0.00010015,2]
[347052912,1735485049919,-500.0,0.00010015,2]
[347052914,1735485049928,-500.0,0.00010015,2]
[347052916,1735485049937,-500.0,0.00010015,2]
[347052918,1735485049947,-500.0,0.00010015,2]
[347052920,1735485049957,-555.56,0.00010015,2]
[347052922,1735485049966,-501.55057105,0.00010015,2]
[347052924,1735485049975,-500.0,0.00010015,2]
[347052926,1735485049984,-500.0,0.00010015,2]
[347052928,1735485049993,-579.83,0.00010015,2]
[347052930,1735485050003,-500.0,0.00010015,2]
[347052932,1735485050012,-500.0,0.00010015,2]
[347052934,1735485050021,-500.0,0.00010015,2]
[347052936,1735485050030,-750.61,0.00010015,2]
[347052938,1735485050040,-511.9,0.00010015,2]
[347052940,1735485050049,-441.70720088,0.00010015,2]
[347052942,1735485050058,-500.0,0.00010015,2]
[347052944,1735485050068,-500.0,0.00010015,2]
[347052946,1735485050077,-500.0,0.00010015,2]
[347052948,1735485050086,-500.0,0.00010015,2]
[347052950,1735485050095,-500.0,0.00010015,2]
[347052952,1735485050104,-507.56393043,0.00010015,2]
[347052954,1735485050116,-504.52908943,0.00010015,2]
[347052956,1735485050125,-500.0,0.00010015,2]
[347052958,1735485050134,-515.79,0.00010015,2]
[347052960,1735485050143,-510.83,0.00010015,2]
[347052962,1735485050153,-500.0,0.00010015,2]
[347052964,1735485050162,-1035.32,0.00010015,2]
[347052966,1735485050171,-500.0,0.00010015,2]
[347052968,1735485050180,-500.0,0.00010015,2]
[347052970,1735485050190,-502.19740198,0.00010015,2]
[347052972,1735485050200,-500.0,0.00010015,2]
[347052974,1735485050209,-585.02,0.00010015,2]
[347052976,1735485050218,-500.0,0.00010015,2]
[347052978,1735485050228,-500.0,0.00010015,2]
[347052980,1735485050237,-500.0,0.00010015,2]
[347052982,1735485050246,-500.0,0.00010015,2]
[347052984,1735485050256,-512.38875991,0.00010015,2]
[347052986,1735485050266,-500.0,0.00010015,2]
[347052988,1735485050275,-506.33768834,0.00010015,2]
[347052990,1735485050284,-500.0,0.00010015,2]
[347052992,1735485050294,-500.0,0.00010015,2]
[347052994,1735485050303,-500.0,0.00010015,2]
[347052996,1735485050312,-649.21179359,0.00010015,2]
[347052998,1735485050321,-892.36,0.00010015,2]
[347053000,1735485050331,-503.77707983,0.00010015,2]
[347053002,1735485050340,-505.05176116,0.00010015,2]
[347053004,1735485050349,-511.37272663,0.00010015,2]
[347053006,1735485050358,-1510.05,0.00010015,2]
[347053008,1735485050367,-505.60989764,0.00010015,2]
[347053010,1735485050376,-500.0,0.00010015,2]
[347053012,1735485050385,-500.0,0.00010015,2]
[347053014,1735485050395,-500.0,0.00010015,2]
[347053016,1735485050404,-502.08,0.00010015,2]
[347053018,1735485050414,-545.95,0.00010015,2]
[347053020,1735485050423,-500.0,0.00010015,2]
[347053022,1735485050433,-694.38,0.00010015,2]
[347053024,1735485050443,-503.14853731,0.00010015,2]
[347053026,1735485050452,-500.0,0.00010015,2]
[347053028,1735485050461,-500.0,0.00010015,2]
[347053030,1735485050470,-500.0,0.00010015,2]
[347053032,1735485050480,-924.15,0.00010015,2]
[347053034,1735485050489,-569.55439717,0.00010015,2]
[347053036,1735485050499,-500.0,0.00010015,2]
[347053038,1735485050508,-1115.65,0.00010015,2]
[347053040,1735485050518,-500.0,0.00010015,2]
[347053042,1735485050527,-380.38786708,0.00010015,2]
[347053044,1735485050535,-500.0,0.00010015,2]
[347053046,1735485050544,-500.0,0.00010015,2]
[347053048,1735485050554,-1196.59,0.00010015,2]
[347053050,1735485050564,-500.0,0.00010015,2]
[347053052,1735485050573,-939.67,0.00010015,2]
[347053054,1735485050583,-500.0,0.00010015,2]
[347053056,1735485050592,-500.0,0.00010015,2]
[347053058,1735485050601,-500.0,0.00010016,2]
[347053060,1735485050611,-500.0,0.00010016,2]
[347053062,1735485050620,-500.0,0.00010016,2]
[347053064,1735485050630,-500.0,0.00010016,2]
[347053066,1735485050639,-500.0,0.00010016,2]
[347053068,1735485050648,-500.0,0.00010016,2]
[347053070,1735485050657,-500.0,0.00010016,2]
[347053072,1735485050667,-500.0,0.00010016,2]
[347053074,1735485050677,-500.0,0.00010016,2]
[347053076,1735485050686,-500.0,0.00010016,2]
[347053078,1735485050695,-500.0,0.00010016,2]
[347053080,1735485050704,-500.0,0.00010016,2]
[347053082,1735485050714,-841.62,0.00010016,2]
[347053084,1735485050723,-575.36558099,0.00010016,2]
[347053086,1735485050733,-618.98,0.00010016,2]
[347053088,1735485050742,-518.11,0.00010016,2]
[347053090,1735485050751,-565.69,0.00010016,2]
[347053092,1735485050761,-522.9,0.00010016,2]
[347053094,1735485050771,-500.0,0.00010016,2]
[347053096,1735485050781,-500.0,0.00010016,2]
[347053098,1735485050795,-500.0,0.00010016,2]
[347053100,1735485050806,-500.0,0.00010016,2]
[347053102,1735485050815,-3018.37,0.00010016,2]
[347053104,1735485050825,-2892.61,0.00010016,2]
[347053106,1735485050835,-500.0,0.00010016,2]
[347053108,1735485050846,-500.0,0.00010016,2]
[347053110,1735485050855,-584.87,0.00010016,2]
[347053111,1735485050864,-500.0,0.00010016,2]
[347053112,1735485050873,-953.05,0.00010016,2]
[347053113,1735485050882,-500.0,0.00010016,2]
[347053114,1735485050892,-500.0,0.00010016,2]
[347053115,1735485050901,-967.91,0.00010016,2]
[347053116,1735485050910,-500.0,0.00010016,2]
[347053117,1735485050920,-848.38,0.00010017,2]
[347053118,1735485050929,-1073.58,0.00010017,2]
[347053119,1735485050938,-500.0,0.00010017,2]
[347053120,1735485050948,-705.45,0.00010017,2]
[347053121,1735485050958,-643.54,0.00010017,2]
[347053122,1735485050967,-500.0,0.00010017,2]
[347053123,1735485050976,-500.0,0.00010017,2]
[347053124,1735485050985,-22014.43,0.00010017,2]
[347053125,1735485050995,-708.85,0.00010017,2]
[347053126,1735485051004,-500.0,0.00010017,2]
[347053127,1735485051014,-500.0,0.00010018,2]
[347053128,1735485051024,-500.0,0.00010018,2]
[347053129,1735485051033,-500.0,0.00010018,2]
[347053130,1735485051043,-516.49725639,0.00010018,2]
[347053131,1735485051052,-500.0,0.00010018,2]
[347053132,1735485051061,-535.03,0.00010018,2]
[347053133,1735485051070,-500.0,0.00010018,2]
[347053135,1735485051080,-500.0,0.00010018,2]
[347053137,1735485051089,-188.0,0.00010018,2]
[347053139,1735485051099,-500.0,0.00010018,2]
[347053141,1735485051108,-500.0,0.00010018,2]
[347053143,1735485051118,-500.0,0.00010018,2]
[347053145,1735485051128,-500.0,0.00010018,2]
[347053147,1735485051137,-500.0,0.00010018,2]
[347053149,1735485051146,-500.0,0.00010018,2]
[347053151,1735485051155,-500.0,0.00010018,2]
[347053153,1735485051164,-500.0,0.00010018,2]
[347053155,1735485051173,-500.0,0.00010018,2]
[347053157,1735485051183,-500.0,0.00010018,2]
[347053159,1735485051192,-503.32136563,0.00010018,2]
[347053161,1735485051203,-670.05,0.00010018,2]
[347053163,1735485051211,-500.0,0.00010021,2]
[347053165,1735485051221,-500.0,0.00010021,2]
[347053167,1735485051230,-500.0,0.00010021,2]
[347053169,1735485051239,-500.0,0.00010021,2]
[347053171,1735485051248,-500.0,0.00010021,2]
[347053173,1735485051258,-500.0,0.00010051,2]
[347053176,1735485051268,-983.55,0.00010051,2]
[347053178,1735485051277,-500.0,0.00010051,2]
[347053180,1735485051286,-495.41901555,0.00010051,2]
[347053182,1735485051295,-503.84527599,0.00010051,2]
[347053192,1735485051380,-500.0,0.00010051,2]
[347053194,1735485051390,-500.0,0.00010051,2]
[347053196,1735485051399,-500.0,0.00010052,2]
[347053198,1735485051408,-1664.69,0.00010052,2]
[347053200,1735485051417,-4851.03,0.00010053,2]
[347053202,1735485051426,-453.79154958,0.00010053,2]
[347053214,1735485051623,-500.0,9.47e-05,2]
[347053215,1735485051633,-522.4,9.741e-05,2]
[347053216,1735485051642,-500.0,9.744e-05,2]
[347053217,1735485051651,-522.4,0.00010015,2]
[347053218,1735485051661,-329.52845042,0.00010053,2]
[347053219,1735485051670,-500.0,0.00010053,2]
[347053220,1735485051679,-5496.72,0.00010058,2]
[347053221,1735485051688,-1664.69,0.00010061,2]
[347053222,1735485051699,-420.0,0.00010108,2]
[347053223,1735485051708,-500.0,0.00010112,2]
[347053224,1735485051717,-500.0,0.00010112,2]
[347053225,1735485051726,-605.91,0.00010287,2]
[347053226,1735485051735,-500.0,0.00010287,2]
[347053228,1735485051745,-2121.42,0.00010287,2]
[347053230,1735485051754,-500.0,0.00010288,2]
[347053232,1735485051763,-500.0,0.00010288,2]
[347053234,1735485051772,-500.0,0.00010288,2]
[347053236,1735485051781,-2563.51,0.00010288,2]
[347053238,1735485051791,-500.0,0.00010288,2]
[347053240,1735485051803,-500.0,0.00010288,2]
[347053242,1735485051812,-1657.25,0.00010288,2]
[347053244,1735485051821,-500.0,0.00010289,2]
[347053246,1735485051830,-500.0,0.00010289,2]
[347053248,1735485051840,-500.0,0.00010289,2]
[347053250,1735485051849,-716.16,0.00010289,2]
[347053252,1735485051858,-500.0,0.00010289,2]
[347053254,1735485051868,-500.0,0.00010289,2]
[347053257,1735485051879,-500.0,0.00010289,2]
[347053259,1735485051889,-500.0,0.00010289,2]
[347053261,1735485051898,-500.0,0.00010289,2]
[347053263,1735485051907,-555.56,0.00010289,2]
[347053264,1735485051916,-500.0,0.00010289,2]
[347053267,1735485051927,-579.83,0.00010289,2]
[347053269,1735485051936,-502.99872529,0.00010289,2]
[347053270,1735485051946,-500.0,0.00010289,2]
[347053272,1735485051955,-500.0,0.00010289,2]
[347053274,1735485051965,-500.0,0.00010289,2]
[347053276,1735485051974,-750.61,0.00010289,2]
[347053279,1735485051984,-511.9,0.00010289,2]
[347053281,1735485051993,-500.0,0.00010289,2]
[347053283,1735485052002,-500.0,0.00010289,2]
[347053285,1735485052011,-500.0,0.00010289,2]
[347053287,1735485052020,-500.0,0.00010289,2]
[347053288,1735485052030,-500.0,0.00010289,2]
[347053291,1735485052039,-500.0,0.00010289,2]
[347053293,1735485052048,-515.79,0.00010289,2]
[347053294,1735485052057,-510.83,0.00010289,2]
[347053297,1735485052066,-508.5864249,0.00010289,2]
[347053299,1735485052076,-1035.32,0.00010289,2]
[347053300,1735485052085,-508.11463766,0.00010289,2]
[347053303,1735485052094,-500.0,0.00010289,2]
[347053305,1735485052104,-500.0,0.00010289,2]
[347053307,1735485052114,-585.02,0.00010289,2]
[347053309,1735485052124,-450.13563232,0.00010289,2]
[347053311,1735485052134,-500.0,0.00010289,2]
[347053312,1735485052143,-609.34674663,0.00010289,2]
[347053314,1735485052153,-500.0,0.00010289,2]
[347053317,1735485052163,-500.0,0.00010289,2]
[347053319,1735485052172,-500.0,0.00010289,2]
[347053321,1735485052181,-500.0,0.00010289,2]
[347053323,1735485052191,-507.84047398,0.00010289,2]
[347053325,1735485052203,-892.36,0.00010289,2]
[347053327,1735485052212,-1510.05,0.00010289,2]
[347053329,1735485052221,-500.0,0.00010289,2]
[347053331,1735485052233,-506.81472458,0.00010289,2]
[347053333,1735485052242,-500.0,0.00010289,2]
[347053335,1735485052252,-502.08,0.00010289,2]
[347053337,1735485052261,-545.95,0.00010289,2]
[347053339,1735485052270,-500.0,0.00010289,2]
[347053341,1735485052279,-694.38,0.00010289,2]
[347053342,1735485052290,-500.0,0.00010289,2]
[347053344,1735485052299,-500.0,0.00010289,2]
[347053347,1735485052309,-924.15,0.00010289,2]
[347053349,1735485052318,-488.1473133,0.00010289,2]
[347053351,1735485052327,-1115.65,0.00010289,2]
[347053353,1735485052336,-504.08565108,0.00010289,2]
[347053355,1735485052347,-500.0,0.00010289,2]
[347053356,1735485052356,-500.0,0.00010289,2]
[347053359,1735485052365,-1196.59,0.00010289,2]
[347053360,1735485052375,-500.0,0.00010289,2]
[347053363,1735485052384,-939.67,0.00010289,2]
[347053365,1735485052393,-500.0,0.00010289,2]
[347053367,1735485052403,-500.0,0.00010289,2]
[347053369,1735485052412,-522.4,0.00010289,2]
[347053371,1735485052421,-500.0,0.0001029,2]
[347053373,1735485052430,-500.0,0.0001029,2]
[347053375,1735485052440,-506.27878451,0.0001029,2]
[347053377,1735485052450,-500.0,0.0001029,2]
[347053379,1735485052459,-500.0,0.0001029,2]
[347053381,1735485052468,-500.0,0.0001029,2]
[347053383,1735485052477,-500.0,0.0001029,2]
[347053385,1735485052487,-500.0,0.0001029,2]
[347053387,1735485052496,-500.0,0.0001029,2]
[347053389,1735485052505,-500.0,0.0001029,2]
[347053391,1735485052514,-500.0,0.0001029,2]
[347053393,1735485052523,-500.0,0.0001029,2]
[347053395,1735485052532,-841.62,0.0001029,2]
[347053397,1735485052541,-618.98,0.0001029,2]
[347053399,1735485052550,-518.11,0.0001029,2]
[347053401,1735485052560,-565.69,0.0001029,2]
[347053403,1735485052569,-522.9,0.0001029,2]
[347053405,1735485052578,-500.0,0.0001029,2]
[347053407,1735485052588,-500.0,0.0001029,2]
[347053409,1735485052597,-500.0,0.0001029,2]
[347053411,1735485052607,-500.0,0.0001029,2]
[347053413,1735485052616,-3018.37,0.0001029,2]
[347053415,1735485052626,-2892.61,0.0001029,2]
[347053417,1735485052635,-500.0,0.0001029,2]
[347053419,1735485052645,-500.0,0.0001029,2]
[347053421,1735485052654,-584.87,0.0001029,2]
[347053423,1735485052663,-500.0,0.0001029,2]
[347053425,1735485052673,-953.05,0.0001029,2]
[347053427,1735485052683,-500.0,0.0001029,2]
[347053429,1735485052691,-500.0,0.0001029,2]
[347053431,1735485052703,-967.91,0.0001029,2]
[347053433,1735485052712,-500.0,0.0001029,2]
[347053435,1735485052721,-848.38,0.00010291,2]
[347053437,1735485052730,-1073.58,0.00010291,2]
[347053439,1735485052739,-500.0,0.00010291,2]
[347053441,1735485052748,-705.45,0.00010291,2]
[347053443,1735485052758,-643.54,0.00010291,2]
[347053445,1735485052767,-500.0,0.00010291,2]
[347053447,1735485052776,-500.0,0.00010291,2]
[347053449,1735485052786,-22014.43,0.00010291,2]
[347053451,1735485052800,-708.85,0.00010291,2]
[347053453,1735485052809,-500.0,0.00010291,2]
[347053456,1735485052819,-500.0,0.00010292,2]
[347053457,1735485052828,-500.0,0.00010292,2]
[347053460,1735485052839,-500.0,0.00010292,2]
[347053461,1735485052848,-549.00510078,0.00010292,2]
[347053464,1735485052858,-535.03,0.00010292,2]
[347053466,1735485052867,-500.0,0.00010292,2]
[347053468,1735485052877,-500.0,0.00010292,2]
[347053470,1735485052886,-188.0,0.00010292,2]
[347053472,1735485052895,-500.0,0.00010292,2]
[347053473,1735485052904,-500.0,0.00010292,2]
[347053475,1735485052913,-250.58699077,0.00010292,2]
[347053477,1735485052922,-500.0,0.00010292,2]
[347053480,1735485052933,-500.0,0.00010292,2]
[347053481,1735485052943,-500.0,0.00010292,2]
[347053483,1735485052953,-500.0,0.00010292,2]
[347053485,1735485052964,-500.0,0.00010292,2]
[347053487,1735485052973,-281.88658548,0.00010292,2]
[347053489,1735485052983,-500.0,0.00010292,2]
[347053491,1735485052992,-670.05,0.00010292,2]
[347053493,1735485053002,-500.0,0.00010295,2]
[347053495,1735485053011,-188.76412642,0.00010295,2]
[347053498,1735485053022,-500.0,0.00010295,2]
[347053500,1735485053033,-500.0,0.00010295,2]
[347053502,1735485053043,-500.0,0.00010295,2]
[347053504,1735485053054,-501.01795844,0.00010304,2]
[347053506,1735485053064,-500.0,0.00010304,2]
[347053508,1735485053074,-500.0,0.00010325,2]
[347053509,1735485053085,-983.55,0.00010325,2]
[347053511,1735485053096,-500.0,0.00010325,2]
[347053513,1735485053107,-500.0,0.00010325,2]
[347053515,1735485053118,-500.0,0.00010325,2]
[347053518,1735485053132,-500.0,0.00010326,2]
[347053520,1735485053141,-1664.69,0.00010326,2]